bitfinex/quotes_ETHUSD_20251107
["timestamp","ask_amount","ask_price","bid_price","bid_amount"]
[1762483875762,0.52427995,3340.7,3338.1,1.991712]
[1762483875763,0.1825,3339.9,3339.0,3.40038997]
[1762483875956,3.17660323,3339.9,3339.0,3.40038997]
[1762483876259,2.99349212,3340.6,3339.2,0.405504]
[1762483876606,2.99383644,3340.2,3339.1,0.1027]
[1762483876757,0.4988,3340.4,3338.4,0.733]
[1762483876758,2.99426906,3339.8,3338.9,0.405504]
[1762483877090,0.1825,3341.0,3338.9,0.405504]
[1762483877091,0.1825,3341.0,3339.7,0.4588]
[1762483877304,0.1825,3341.0,3338.9,0.3805726]
[1762483877305,2.99373163,3340.4,3339.1,0.405504]
[1762483877511,5.30579336,3340.8,3339.1,0.405504]
[1762483877658,5.30579336,3340.8,3338.6,0.734]
[1762483877659,2.99356383,3340.5,3338.6,0.734]
[1762483877866,1.259712,3340.1,3338.1,2.99565434]
[1762483878083,2.99410161,3339.9,3338.4,2.99542254]
[1762483878396,2.99359206,3340.5,3338.8,2.99507895]
[1762483878397,0.4988,3340.0,3338.8,2.99507895]
[1762483878604,1.259712,3340.3,3338.2,0.70154543]
[1762483878605,0.1825,3339.8,3338.2,0.70154543]
[1762483878890,0.1825,3339.8,3338.3,0.43545936]
[1762483879092,3.17670897,3339.8,3338.9,2.99491858]
[1762483879298,3.49308564,3339.7,3339.4,0.1496]
[1762483879589,0.4981,3339.5,3339.4,0.1496]
[1762483880020,3.99136024,3339.5,3339.4,0.1496]
[1762483880403,0.9969,3339.5,3338.1,0.3561]
[1762483880596,0.9969,3339.5,3338.8,0.405504]
[1762483880809,0.1825,3339.8,3339.0,0.405504]
[1762483881119,0.6813,3339.8,3338.5,0.405504]
[1762483881321,2.99466503,3339.3,3338.5,0.405504]
[1762483881522,0.6813,3339.8,3338.7,0.405504]
[1762483881523,0.4988,3339.7,3338.7,0.405504]
[1762483881823,2.99467204,3339.3,3338.7,0.405504]
[1762483882193,0.1825,3339.8,3338.7,3.4006343]
[1762483882194,0.4988,3339.4,3338.7,3.4006343]
[1762483882395,0.4988,3339.4,3338.8,0.405504]
[1762483882609,0.4988,3339.4,3338.8,3.40051244]
[1762483882898,0.4988,3339.4,3338.9,0.63957612]
[1762483883492,0.4988,3339.4,3338.7,2.99511125]
[1762483883828,0.4988,3339.4,3338.2,0.20428945]
[1762483884000,0.4988,3339.4,3338.3,0.405504]
[1762483884001,2.99465336,3339.3,3338.3,0.405504]
[1762483884203,2.99465336,3339.3,3338.5,2.99528856]
[1762483884524,0.1825,3339.8,3339.0,2.99485507]
[1762483884525,1.941012,3339.8,3339.0,2.99485507]
[1762483884723,1.259712,3339.5,3338.6,0.405504]
[1762483884901,1.259712,3339.5,3338.9,2.99499206]
[1762483885104,1.259712,3339.6,3339.0,3.29440741]
[1762483885305,1.758512,3339.7,3339.0,0.29949921]
[1762483885614,4.25418545,3339.5,3339.0,0.29949921]
[1762483885788,2.99455114,3339.4,3338.6,2.99519804]
[1762483885987,2.99455114,3339.4,3338.7,3.4006723]
[1762483886295,0.4988,3339.4,3338.9,0.405504]
[1762483886707,0.4988,3339.4,3338.7,0.405504]
[1762483887020,3.49335148,3339.4,3338.7,3.40062539]
[1762483887226,0.4988,3339.4,3338.8,0.63959806]
[1762483887453,2.99480277,3339.2,3338.5,3.40079425]
[1762483887637,0.52427995,3339.3,3338.6,3.40075689]
[1762483887638,3.49343998,3339.3,3338.6,3.40075689]
[1762483887842,2.99473145,3339.2,3338.5,2.99535545]
[1762483888145,3.49344598,3339.3,3338.6,0.405504]
[1762483888313,0.4988,3339.3,3338.7,2.99512406]
[1762483888518,0.4988,3339.3,3338.8,0.63959769]
[1762483888735,1.259712,3339.5,3338.8,0.63959769]
[1762483888736,3.49353182,3339.2,3338.8,0.63959769]
[1762483888936,3.49353182,3339.2,3338.6,0.405504]
[1762483889137,0.4988,3339.2,3338.6,3.40075015]
[1762483889447,0.6806,3338.7,3337.6,4.14218784]
[1762483889744,0.6806,3338.7,3338.1,0.405504]
[1762483889947,0.6806,3338.7,3337.5,3.78608784]
[1762483889948,0.4988,3338.6,3337.5,3.78608784]
[1762483890146,0.4624,3338.1,3337.7,2.99605718]
[1762483890448,2.99469186,3339.3,3337.7,2.99605718]
[1762483890449,3.14463852,3338.9,3338.3,0.1496]
[1762483890652,3.17741601,3339.0,3338.2,0.1027]
[1762483890954,0.1825,3339.3,3338.4,0.405504]
[1762483891315,0.1825,3339.3,3338.5,2.995335]
[1762483891514,0.4988,3339.2,3338.5,0.64495955]
[1762483891724,2.99482721,3339.1,3338.4,2.99538062]
[1762483891956,2.99482721,3339.1,3338.5,2.9953497]
[1762483892356,0.1825,3339.3,3338.4,0.02995446]
[1762483892555,2.99497655,3339.0,3338.3,3.40101396]
[1762483892757,3.49362835,3339.1,3338.4,2.99543883]
[1762483893060,2.99492749,3339.0,3338.3,4.05097663]
[1762483893354,0.4988,3339.1,3338.5,2.99534779]
[1762483894130,0.4988,3339.1,3338.4,2.99539046]
[1762483894455,3.49368292,3339.1,3338.3,1.05544637]
[1762483894757,2.99475977,3339.2,3338.6,2.99526497]
[1762483894967,3.17714325,3339.3,3338.7,2.99515684]
[1762483895171,0.6813,3339.3,3338.7,2.99515684]
[1762483895370,0.6813,3339.3,3338.6,2.99524176]
[1762483895732,0.6813,3339.3,3338.7,2.99517776]
[1762483895940,0.1825,3339.3,3338.9,2.99499565]
[1762483896132,0.1825,3339.3,3338.5,0.405504]
[1762483896335,0.002,3339.5,3338.9,0.405504]
[1762483896546,0.002,3339.5,3339.1,2.99480513]
[1762483896751,0.002,3339.5,3339.2,2.99472705]
[1762483896936,0.002,3339.5,3339.1,2.99478619]
[1762483897131,0.002,3339.5,3339.0,2.99483336]
[1762483897374,0.002,3339.5,3339.1,2.99481441]
[1762483897675,0.002,3339.5,3339.4,3.45334991]
[1762483898234,0.002,3339.5,3339.4,3.85885391]
[1762483898442,0.002,3339.5,3339.4,4.59595343]
[1762483899454,0.002,3339.5,3339.4,1.24530352]
[1762483899663,0.9664,3339.5,3339.0,2.99483458]
[1762483899972,0.002,3339.5,3339.1,3.0975036]
[1762483900275,0.002,3339.5,3339.2,2.99472397]
[1762483900834,0.002,3339.5,3338.8,0.405504]
[1762483901037,0.002,3339.5,3339.4,0.1496]
[1762483901234,0.9881,3339.5,3339.4,0.1496]
[1762483901471,3.98256024,3339.5,3339.4,0.1496]
[1762483902050,2.99485454,3339.1,3338.4,2.9953818]
[1762483902249,0.4976,3339.4,3338.5,0.73534042]
[1762483902475,2.99465492,3339.3,3337.6,1.16370031]
[1762483902678,2.99509059,3338.8,3338.1,2.99564617]
[1762483902898,2.99509059,3338.8,3338.6,0.1496]
[1762483903101,0.1969,3338.7,3338.6,0.1496]
[1762483903401,1.183,3338.7,3338.6,0.1496]
[1762483904301,4.17817776,3338.7,3338.6,0.1496]
[1762483904594,2.99549012,3338.4,3337.7,2.99606665]
[1762483904799,2.99528658,3338.6,3337.1,0.3561]
[1762483904800,0.4976,3338.6,3337.8,0.5992317]
[1762483904965,2.99574727,3338.1,3337.4,2.99634156]
[1762483905161,2.99574727,3338.1,3337.2,3.73049398]
[1762483905367,2.99574727,3338.1,3338.0,0.1496]
[1762483905582,2.99565814,3338.2,3338.0,0.1496]
[1762483905768,0.4885,3338.1,3338.0,0.1496]
[1762483905969,0.9861,3338.1,3338.0,0.1496]
[1762483906823,3.98181612,3338.1,3338.0,0.1496]
[1762483906974,2.99582186,3338.0,3337.3,2.99642599]
[1762483907174,3.49342186,3338.0,3337.7,0.1496]
[1762483907392,0.1969,3337.9,3337.7,0.1496]
[1762483907772,0.4885,3337.8,3337.7,0.1496]
[1762483908113,2.99560132,3338.3,3337.8,0.1496]
[1762483908413,2.99562638,3338.2,3338.1,0.1496]
[1762483908582,3.49322638,3338.2,3338.1,0.1496]
[1762483908791,3.98172638,3338.2,3338.1,0.1496]
[1762483909077,0.9861,3338.2,3338.1,0.1496]
[1762483910977,3.98172638,3338.2,3338.1,0.1496]
[1762483911928,0.9861,3338.2,3338.1,0.1496]
[1762483912419,3.98172638,3338.2,3338.1,0.1496]
[1762483913133,3.98172638,3338.2,3336.0,0.3561]
[1762483913134,1.259712,3338.1,3336.0,0.3561]
[1762483913282,1.259712,3337.7,3337.2,0.1496]
[1762483913484,0.6854,3337.3,3337.2,0.1496]
[1762483913983,0.1969,3337.9,3337.1,0.1506]
[1762483914314,3.19286264,3337.9,3337.2,3.14605074]
[1762483914493,3.69046264,3337.9,3337.2,2.99650275]
[1762483914830,3.19285792,3337.9,3337.2,0.61437936]
[1762483915000,0.1969,3337.9,3337.8,0.1496]
[1762483915184,3.19279562,3337.9,3337.8,0.1496]
[1762483915383,0.6854,3337.9,3337.8,0.1496]
[1762483915804,1.183,3337.9,3337.8,0.1496]
[1762483916005,4.17889562,3337.9,3337.8,0.1496]
[1762483916384,1.183,3337.9,3337.8,0.1496]
[1762483916630,4.17889562,3337.9,3337.8,0.1496]
[1762483917922,1.183,3337.9,3337.8,0.1496]
[1762483918309,4.17889562,3337.9,3337.8,0.1496]
[1762483918729,2.99610887,3337.7,3337.4,3.78608784]
[1762483918929,3.49360525,3337.8,3337.5,0.1496]
[1762483919117,0.4976,3337.8,3337.5,0.1496]
[1762483919428,0.4885,3337.6,3337.5,0.1496]
[1762483919805,0.9861,3337.6,3337.5,0.1496]
[1762483920124,0.4885,3337.6,3337.5,0.1496]
[1762483920325,2.99600496,3337.8,3337.5,0.1496]
[1762483920636,0.4885,3337.6,3337.5,0.1496]
[1762483921011,0.1969,3337.9,3337.5,0.1496]
[1762483921012,0.1969,3337.9,3337.5,3.78608784]
[1762483921221,0.4976,3337.8,3337.5,3.78608784]
[1762483921394,0.4976,3338.6,3337.8,0.3561]
[1762483921740,2.99516377,3338.8,3337.9,3.02577886]
[1762483922038,0.4976,3338.7,3338.0,0.71679667]
[1762483922246,0.4976,3338.7,3337.8,3.78608784]
[1762483922247,2.9958587,3338.0,3337.8,3.78608784]
[1762483922530,0.6854,3337.9,3337.8,3.78608784]
[1762483922688,1.183,3337.9,3337.4,3.78608784]
[1762483922889,0.6854,3337.9,3337.4,4.80454608]
[1762483923122,1.183,3337.9,3337.4,4.80454608]
[1762483923299,1.20847995,3337.9,3337.4,4.80454608]
[1762483923499,0.1969,3338.5,3337.8,0.3561]
[1762483923724,0.1969,3338.5,3337.5,0.38606254]
[1762483923725,0.1969,3339.6,3338.8,3.45384151]
[1762483923925,0.002,3339.7,3338.9,0.74214998]
[1762483924134,0.002,3339.7,3339.2,0.3561]
[1762483924489,0.002,3339.7,3339.2,3.35082927]
[1762483924832,0.002,3339.7,3339.2,0.3561]
[1762483924982,0.002,3339.7,3339.2,2.99472927]
[1762483925194,0.002,3339.7,3339.2,3.35082927]
[1762483926446,0.002,3339.7,3339.2,4.38205346]
[1762483927522,0.002,3339.7,3339.2,4.78755746]
[1762483928331,0.002,3339.7,3339.2,5.25522471]
[1762483931252,2.99350035,3340.6,3339.2,5.25522471]
[1762483931253,3.457083,3341.6,3339.8,0.405504]
[1762483931431,0.48997995,3341.5,3339.3,1.23302546]
[1762483931749,0.4645,3341.5,3340.2,2.99376273]
[1762483931954,2.99315622,3341.0,3340.2,2.99376273]
[1762483932247,0.4645,3341.5,3340.0,3.39951594]
[1762483932248,0.4645,3341.5,3340.1,0.1506]
[1762483932397,0.4645,3341.5,3340.2,0.02993832]
[1762483932398,1.724212,3341.5,3340.2,0.02993832]
[1762483932623,8.70410248,3341.9,3340.1,0.1506]
[1762483932624,2.99247491,3341.8,3341.0,2.99310914]
[1762483932821,3.45697491,3341.8,3341.0,2.99310914]
[1762483933160,3.45697491,3341.8,3340.3,4.13319916]
[1762483933161,0.1969,3342.0,3341.2,2.99286285]
[1762483933366,0.4645,3341.9,3340.8,0.734]
[1762483933569,0.4645,3341.9,3341.0,2.99308957]
[1762483933720,2.99160265,3342.7,3341.0,2.99308957]
[1762483933721,0.89889929,3343.2,3341.8,0.3561]
[1762483933927,0.02547995,3343.1,3341.9,0.634]
[1762483934128,5.71175087,3343.4,3341.8,0.1027]
[1762483934374,2.9911462,3343.2,3341.4,0.8397]
[1762483934574,0.1847,3343.0,3341.5,0.405504]
[1762483934870,0.1847,3343.0,3341.7,2.99247583]
[1762483934871,2.99165739,3342.7,3341.7,2.99247583]
[1762483935077,2.99193272,3342.4,3341.5,0.405504]
[1762483935228,0.4645,3342.8,3341.5,0.405504]
[1762483935423,3.456108,3342.7,3341.5,0.56400554]
[1762483935624,0.4645,3342.7,3341.7,2.99242834]
[1762483935829,2.99183565,3342.5,3341.7,2.99242834]
[1762483936242,0.4645,3342.5,3341.8,2.99238968]
[1762483936558,2.99168551,3342.6,3341.8,2.99239322]
[1762483936761,0.4645,3342.5,3341.5,0.56400554]
[1762483936962,3.4563132,3342.5,3341.4,0.8397]
[1762483937155,2.9920487,3342.2,3341.4,0.8407]
[1762483937357,2.9920487,3342.2,3341.5,2.99265872]
[1762483937552,3.45636656,3342.4,3341.6,2.99256909]
[1762483937725,0.4645,3342.4,3341.7,2.99246792]
[1762483938155,0.4645,3342.4,3341.8,2.99238347]
[1762483938537,0.4645,3342.4,3341.4,0.8407]
[1762483938757,2.99195165,3342.3,3341.4,1.0009304]
[1762483938930,2.99201816,3342.3,3341.5,2.99259324]
[1762483939129,2.99205976,3342.2,3341.4,3.99361745]
[1762483939434,3.45637547,3342.4,3341.7,2.99248803]
[1762483939660,2.99201114,3342.3,3341.4,3.993674]
[1762483939855,2.99235806,3341.9,3341.1,3.39851404]
[1762483940182,2.9928167,3341.4,3340.6,3.73038907]
[1762483940495,2.9928167,3341.4,3340.6,0.737]
[1762483940496,2.99281636,3341.4,3340.6,0.737]
[1762483940688,2.99281636,3341.4,3340.7,2.99337667]
[1762483940870,3.17739386,3341.5,3340.8,2.99329172]
[1762483941052,2.99283067,3341.4,3341.3,0.1496]
[1762483941548,3.64187837,3341.5,3341.3,0.1496]
[1762483941798,3.48175752,3341.4,3341.3,0.1496]
[1762483942078,3.94625752,3341.4,3341.3,0.1496]
[1762483942301,2.99371734,3340.4,3339.5,0.3561]
[1762483942446,0.51447995,3340.3,3339.0,0.4588]
[1762483942645,0.02547995,3340.2,3340.1,0.1496]
[1762483942868,0.1847,3341.0,3340.3,2.99367178]
[1762483942869,0.6492,3341.0,3340.3,2.99367178]
[1762483943080,0.6492,3341.0,3340.4,0.35003718]
[1762483943290,0.4645,3340.9,3339.9,0.737]
[1762483943464,2.99345002,3340.7,3339.9,0.737]
[1762483943651,2.99345002,3340.7,3339.7,2.99427639]
[1762483943851,2.99331747,3340.8,3339.7,2.99427639]
[1762483944079,0.48997995,3340.7,3339.5,0.739]
[1762483944284,2.99348802,3340.6,3339.6,2.99434577]
[1762483944486,2.99347422,3340.6,3339.6,0.40894458]
[1762483944670,2.99347422,3340.6,3339.8,2.99411868]
[1762483944987,0.4645,3340.7,3339.5,0.739]
[1762483945145,3.45791621,3340.7,3340.0,2.99400318]
[1762483945456,0.1847,3341.0,3340.1,0.53663922]
[1762483945646,0.1847,3341.0,3340.1,0.18053922]
[1762483945843,0.1847,3341.0,3340.3,2.99373946]
[1762483945844,0.4645,3340.9,3340.3,2.99373946]
[1762483946071,0.4645,3340.9,3340.3,2.99374307]
[1762483946289,2.99329501,3340.8,3340.0,0.74]
[1762483946483,2.99329501,3340.8,3340.0,2.99392623]
[1762483946650,3.45779501,3340.8,3340.0,2.99392623]
[1762483946846,0.1847,3341.0,3340.1,0.02993922]
[1762483947079,0.4645,3340.9,3340.0,2.99395425]
[1762483947583,2.9933913,3340.7,3340.0,0.35223599]
[1762483947781,2.9933913,3340.7,3339.9,2.99409279]
[1762483947969,0.4645,3340.6,3339.6,0.001]
[1762483948452,2.99389464,3340.2,3339.6,0.001]
[1762483948849,0.4645,3340.1,3339.6,0.001]
[1762483949047,0.4645,3340.9,3339.6,0.33058893]
[1762483949247,0.4645,3340.9,3340.0,2.99395002]
[1762483949456,3.45772198,3340.9,3340.1,3.02377557]
[1762483949675,3.45772198,3340.9,3340.1,3.14452233]
[1762483949861,3.45772198,3340.9,3340.2,2.99378156]
[1762483950271,0.4645,3340.9,3340.1,0.1506]
[1762483950477,0.4645,3340.9,3340.2,2.9938327]
[1762483950673,0.1847,3341.0,3340.2,0.31444327]
[1762483950874,0.1847,3340.9,3340.2,0.739]
[1762483951186,0.1847,3340.9,3340.1,0.1506]
[1762483951187,3.17796136,3340.9,3340.1,0.1506]
[1762483951387,3.17795962,3340.9,3340.2,2.99382689]
[1762483951567,3.17795962,3340.9,3340.1,0.1506]
[1762483951568,0.1847,3340.9,3340.3,2.99372064]
[1762483951769,0.1847,3340.9,3340.2,2.99382377]
[1762483952083,2.9934203,3340.7,3340.1,3.14451293]
[1762483952287,2.99332933,3340.8,3340.1,0.87891309]
[1762483952462,2.99332933,3340.8,3340.2,2.99382027]
[1762483952666,3.17793624,3340.9,3340.2,2.99382027]
[1762483952973,3.17793624,3340.9,3340.7,0.1496]
[1762483952974,3.45779501,3340.8,3340.7,0.1496]
[1762483953157,2.99354505,3340.6,3340.5,0.1496]
[1762483953572,3.94704505,3340.6,3340.5,0.1496]
[1762483953777,2.99339159,3340.7,3340.5,0.1496]
[1762483953973,2.99313501,3341.0,3340.5,0.1496]
[1762483954177,0.6492,3340.9,3340.2,0.1506]
[1762483954389,0.6492,3340.9,3340.3,2.99371389]
[1762483954560,0.6492,3340.9,3340.8,0.1496]
[1762483954766,0.489,3340.3,3339.8,0.739]
[1762483954991,0.489,3340.3,3339.8,2.99413561]
[1762483955287,0.9535,3340.3,3340.2,0.1496]
[1762483955491,3.48274307,3340.3,3340.2,0.1496]
[1762483955791,0.489,3340.3,3340.2,0.1496]
[1762483956297,2.99403503,3340.0,3339.6,0.001]
[1762483956467,1.1382,3339.9,3339.6,0.001]
[1762483956666,4.13231857,3339.9,3339.6,0.001]
[1762483956874,4.13231857,3339.9,3339.8,0.1496]
[1762483957066,3.17881857,3339.9,3339.8,0.1496]
[1762483957287,0.1847,3339.9,3339.8,0.1496]
[1762483957789,2.99384619,3340.2,3339.8,0.1496]
[1762483957987,3.44534063,3340.5,3339.8,0.1496]
[1762483958290,0.4517,3340.5,3339.8,0.1496]
[1762483958489,2.99381405,3340.3,3339.8,0.1496]
[1762483958689,2.99383511,3340.2,3339.8,0.1496]
[1762483959062,3.44536671,3340.4,3339.8,0.1496]
[1762483959063,2.99393422,3340.1,3339.8,0.1496]
[1762483959291,2.99375356,3340.3,3339.8,0.1496]
[1762483959292,3.4454773,3340.3,3339.8,0.1496]
[1762483959593,2.99362092,3340.5,3339.6,3.02524451]
[1762483959895,3.14290572,3340.8,3340.0,0.1496]
[1762483960088,2.99356434,3340.5,3340.0,0.1496]
[1762483960300,2.99350669,3340.6,3340.0,0.1496]
[1762483960465,2.99350669,3340.6,3340.3,0.1496]
[1762483960660,2.99357072,3340.5,3340.3,0.1496]
[1762483960961,3.45185345,3340.4,3340.3,0.1496]
[1762483961180,3.93705345,3340.4,3340.3,0.1496]
[1762483962189,0.9434,3340.4,3340.3,0.1496]
[1762483962395,2.99356751,3340.5,3340.3,0.1496]
[1762483963473,0.1847,3340.9,3340.1,0.1506]
[1762483963678,0.1847,3340.9,3340.4,3.14317311]
[1762483963890,2.99304904,3341.1,3340.5,2.99354938]
[1762483964194,0.8215,3341.5,3340.8,0.1496]
[1762483964498,1.259712,3341.2,3340.8,0.1496]
[1762483964699,2.9927643,3341.4,3340.6,2.99347005]
[1762483964994,2.99293666,3341.2,3341.1,0.1496]
[1762483965385,3.93633666,3341.2,3341.1,0.1496]
[1762483966413,3.45313666,3341.2,3341.1,0.1496]
[1762483966700,3.93833666,3341.2,3341.1,0.1496]
[1762483967288,0.4602,3341.2,3340.5,2.99354481]
[1762483967487,0.002,3341.2,3340.6,3.6587503]
[1762483967692,0.002,3341.2,3340.6,0.66529133]
[1762483967890,0.002,3341.2,3341.1,0.4588]
[1762483969191,0.002,3341.2,3340.7,4.1461]
[1762483969192,0.9454,3341.2,3340.7,3.79]
[1762483969370,3.50799501,3340.8,3340.7,3.79]
[1762483969776,3.99319501,3340.8,3340.7,3.79]
[1762483969972,3.99319501,3340.8,3339.9,0.737]
[1762483969973,0.002,3341.2,3340.4,0.1506]
[1762483970197,2.99326715,3340.9,3340.0,6.78400367]
[1762483970402,2.99326715,3340.9,3340.2,2.99381009]
[1762483970600,3.47822624,3341.1,3340.3,2.99373315]
[1762483970601,0.1839,3340.8,3340.3,2.99373315]
[1762483970829,0.1839,3340.8,3340.2,2.99379247]
[1762483971032,2.99346851,3340.7,3340.1,0.93831037]
[1762483971199,0.6691,3340.8,3340.1,0.93831037]
[1762483971399,0.6691,3340.8,3340.2,2.9938327]
[1762483971600,0.002,3341.2,3340.4,2.99365297]
[1762483971800,2.99310331,3341.1,3340.4,2.99365297]
[1762483972033,0.002,3341.2,3340.2,4.93531341]
[1762483972231,0.002,3341.2,3340.8,2.99323229]
[1762483972401,0.002,3341.2,3340.5,0.405504]
[1762483972596,0.002,3341.2,3341.1,3.45182624]
[1762483972933,0.002,3341.2,3341.1,3.85733024]
[1762483973428,0.002,3341.2,3341.1,8.00343024]
[1762483973637,0.002,3341.2,3341.1,9.21160981]
[1762483975233,0.002,3341.2,3341.1,8.85550981]
[1762483975424,0.002,3341.2,3341.1,9.56138822]
[1762483975625,0.002,3341.2,3341.1,9.21160981]
[1762483976348,0.002,3341.2,3341.1,9.56138822]
[1762483976943,0.002,3341.2,3341.1,8.45000581]
[1762483977430,0.002,3341.2,3341.1,4.80960581]
[1762483977600,0.002,3341.2,3341.1,5.19563607]
[1762483977800,0.002,3341.2,3341.1,5.16570581]
[1762483978004,0.002,3341.2,3341.1,4.80960581]
[1762483978613,0.002,3341.2,3341.1,5.16570581]
[1762483978826,0.002,3341.2,3341.1,1.81657957]
[1762483979009,0.002,3341.2,3341.1,7.39142624]
[1762483979210,0.002,3341.2,3341.1,7.74752624]
[1762483980003,0.002,3341.2,3341.1,7.39142624]
[1762483980338,0.002,3341.2,3341.1,3.9396]
[1762483980502,0.9454,3341.2,3341.1,3.9396]
[1762483980700,0.4602,3341.2,3341.1,3.9396]
[1762483980900,0.002,3341.2,3341.1,3.79]
[1762483981131,0.002,3341.2,3341.1,7.26472624]
[1762483981459,0.002,3341.2,3341.1,7.62082624]
[1762483981614,0.002,3341.2,3341.1,7.26472624]
[1762483981805,0.002,3341.2,3341.1,3.79]
[1762483981999,0.002,3341.2,3341.1,7.6772605]
[1762483982212,0.002,3341.2,3341.1,7.64733024]
[1762483982412,0.002,3341.2,3341.1,7.18853024]
[1762483982613,0.002,3341.2,3341.1,3.79]
[1762483983024,0.002,3341.2,3341.1,6.78302624]
[1762483983928,0.002,3341.2,3341.1,7.93047178]
[1762483984723,0.002,3341.5,3341.4,3.39826152]
[1762483984944,0.002,3341.5,3341.4,4.49036152]
[1762483985125,0.002,3341.5,3341.4,4.84646152]
[1762483985343,0.002,3341.5,3341.4,5.17573242]
[1762483985655,0.002,3341.5,3341.4,7.06255665]
[1762483986480,0.002,3341.5,3341.4,3.30819513]
[1762483986632,0.002,3341.5,3341.4,5.94485265]
[1762483986838,0.002,3341.5,3341.4,6.30095265]
[1762483987238,0.002,3341.5,3341.4,7.41371811]
[1762483987677,0.002,3341.5,3341.4,6.70645665]
[1762483987976,0.002,3341.5,3341.4,7.06255665]
[1762483988140,0.002,3341.5,3341.4,7.39105145]
[1762483988339,0.002,3341.5,3341.4,7.06255665]
[1762483988654,0.002,3341.6,3341.5,3.39817196]
[1762483988867,0.1839,3342.9,3342.6,2.99166155]
[1762483989107,0.1839,3342.9,3342.2,0.405504]
[1762483989309,0.1839,3342.9,3342.2,3.39753861]
[1762483989458,0.1839,3342.9,3342.1,4.6277]
[1762483989663,2.99173843,3342.6,3342.1,3.788]
[1762483989886,0.4582,3342.2,3342.1,3.788]
[1762483990099,0.4582,3342.2,3342.0,0.737]
[1762483990310,0.4582,3342.2,3340.4,7.05624375]
[1762483990311,0.4582,3342.2,3341.4,2.9927568]
[1762483990461,0.4582,3342.0,3341.5,0.71368568]
[1762483990808,0.4986,3342.7,3341.6,0.02992578]
[1762483990977,3.49025157,3342.7,3342.0,3.34825139]
[1762483991178,3.49025157,3342.7,3342.3,0.1488]
[1762483991500,3.49029171,3342.6,3342.3,0.1488]
[1762483991661,0.4924,3342.4,3342.3,0.1488]
[1762483992062,0.4924,3342.4,3341.8,0.737]
[1762483992265,0.991,3342.4,3342.3,0.1488]
[1762483992916,0.4924,3342.4,3342.3,0.1488]
[1762483993322,0.991,3342.4,3342.3,0.1488]
[1762483993520,0.4924,3342.4,3342.3,0.1488]
[1762483993818,0.4986,3342.8,3342.3,0.1488]
[1762483993986,0.4924,3342.4,3341.9,2.99222293]
[1762483994185,0.4636,3342.2,3341.7,0.737]
[1762483994400,0.4636,3342.2,3341.9,2.99230976]
[1762483994600,0.4636,3342.2,3342.1,0.1496]
[1762483995121,0.4986,3342.6,3342.1,3.9376]
[1762483995296,0.991,3342.2,3342.1,3.9376]
[1762483995497,3.98304117,3342.2,3342.1,3.788]
[1762483995698,0.991,3342.2,3342.1,3.9376]
[1762483996027,0.4924,3342.2,3342.1,3.9376]
[1762483996405,0.991,3342.2,3342.1,3.9376]
[1762483997822,3.98304117,3342.2,3342.1,0.1496]
[1762483998023,2.99213069,3342.1,3342.0,0.1496]
[1762483998529,0.4636,3342.1,3342.0,0.1496]
[1762483999232,3.45573069,3342.1,3342.0,0.1496]
[1762483999998,3.95433069,3342.1,3342.0,0.1496]
[1762484000213,0.9622,3342.1,3342.0,0.1496]
[1762484000628,3.95433069,3342.1,3342.0,0.1496]
[1762484001229,0.98767995,3342.1,3340.0,0.001]
[1762484001523,2.99327231,3340.9,3340.1,0.47273104]
[1762484002036,0.186,3340.8,3340.3,2.99373378]
[1762484002453,0.186,3340.8,3340.1,0.47273104]
[1762484002454,0.4924,3340.4,3340.1,0.47273104]
[1762484002647,0.186,3340.8,3340.5,0.1496]
[1762484002814,0.186,3340.8,3340.4,2.99357839]
[1762484003150,0.186,3340.8,3340.0,0.001]
[1762484003337,0.4986,3340.7,3340.0,0.001]
[1762484003542,0.4924,3340.1,3340.0,0.001]
[1762484003729,0.4924,3340.1,3339.9,2.99407876]
[1762484003730,0.4924,3340.1,3339.3,0.406504]
[1762484003931,2.99454991,3339.4,3339.3,0.001]
[1762484004266,4.71016191,3339.4,3339.3,0.001]
[1762484004460,5.20876191,3339.4,3339.3,0.001]
[1762484005859,0.9545,3339.4,3339.3,0.001]
[1762484006061,3.94904991,3339.4,3339.3,0.001]
[1762484006221,0.9545,3339.4,3339.3,0.001]
[1762484006672,0.1859,3339.7,3339.3,0.001]
[1762484007021,0.6845,3339.7,3339.3,0.001]
[1762484007517,3.17967388,3340.4,3339.6,0.3571]
[1762484007723,3.17967388,3340.4,3339.3,0.001]
[1762484007946,0.4986,3340.3,3339.4,2.99453882]
[1762484008177,0.4986,3340.3,3339.5,0.29955388]
[1762484008178,3.49235643,3340.3,3339.5,0.29955388]
[1762484008342,2.99399816,3340.1,3339.5,0.29955388]
[1762484008550,0.4986,3340.2,3339.5,0.29955388]
[1762484008840,2.99398329,3340.1,3339.4,2.9945433]
[1762484009055,2.99383435,3340.2,3339.4,2.99452202]
[1762484009283,3.49243435,3340.2,3339.4,2.99452202]
[1762484009578,3.49243478,3340.2,3339.4,2.99454991]
[1762484009780,0.4986,3340.2,3339.3,0.001]
[1762484009962,0.4986,3340.2,3339.3,2.99562662]
[1762484010148,3.01940228,3340.1,3339.3,0.001]
[1762484010350,0.4924,3339.4,3339.3,0.001]
[1762484010546,3.48694991,3339.4,3339.3,0.001]
[1762484010860,3.98554991,3339.4,3339.3,0.001]
[1762484011275,0.991,3339.4,3339.3,0.001]
[1762484011448,3.98554991,3339.4,3339.3,0.001]
[1762484012583,0.4986,3340.1,3339.4,2.99454991]
[1762484012787,0.4986,3340.1,3339.5,3.29399468]
[1762484012788,2.99392527,3340.1,3339.5,3.29399468]
[1762484013078,2.99376878,3340.3,3339.9,0.1496]
[1762484013381,2.093912,3340.4,3339.9,0.1496]
[1762484013579,0.6846,3341.1,3340.3,0.5077]
[1762484013782,3.17922167,3340.9,3340.3,0.1506]
[1762484013960,0.186,3340.9,3340.3,3.14433443]
[1762484014284,0.186,3341.1,3340.6,2.99340951]
[1762484014492,0.186,3341.1,3340.6,2.99347389]